fUSD/lending_fUSD_20250310
["ID","MTS","AMOUNT","RATE_DAILY","PERIOD"]
[355798959,1741576242703,-1385.9498804,9.998e-05,2]
[355798960,1741576242713,-786.3982638,9.998e-05,2]
[355798961,1741576242723,-1000.0,9.999e-05,2]
[355798962,1741576242733,-1500.57,9.999e-05,2]
[355798963,1741576242742,-563.45590411,9.999e-05,2]
[355798964,1741576242752,-201.57499842,0.0001,2]
[355798965,1741576242763,-708.0,0.0001,2]
[355798966,1741576242772,-5517.10808261,0.0001,2]
[355798967,1741576242782,-36369.69468438,0.0001,2]
[355798968,1741576242795,-500.0,0.0001,2]
[355798969,1741576242807,-374163.55051115,0.0001,2]
[355798970,1741576243993,-113432.17323359,0.0001,2]
[355798971,1741576244013,-329789.24904311,0.0001,2]
[355798972,1741576244033,-559.47986864,0.0001,2]
[355798974,1741576245639,-72013.10823072,0.0001,2]
[355798975,1741576245900,-4149.45174999,0.0001,2]
[355798976,1741576245912,-854.34194961,0.0001,2]
[355798977,1741576275352,699.49722805,8.219e-05,2]
[355798978,1741576275374,460.72277195,8.219e-05,2]
[355798979,1741576331471,160.15385533,0.00028,120]
[355798992,1741576504863,157.0,0.00028,120]
[355798993,1741576722400,1218.78,0.00028,120]
[355799001,1741577307555,1102.2,8.219e-05,2]
[355799022,1741577396364,11411.66249545,0.00028,120]
[355799031,1741577431795,-550.0,9e-05,2]
[355799032,1741577431805,-396.87693558,9e-05,2]
[355799033,1741577431814,-153.34,9.071e-05,2]
[355799034,1741577431824,-300.0,9.089e-05,2]
[355799035,1741577431833,-2771.259515,9.09e-05,2]
[355799036,1741577431849,-439.83347109,9.09e-05,2]
[355799037,1741577432011,-765.29,9.09e-05,2]
[355799054,1741577437775,-463.12378023,9.09e-05,2]
[355799055,1741577437786,-1025.56835964,9.09e-05,2]
[355799056,1741577437940,-739.29319701,9.09e-05,2]
[355799057,1741577437996,-324.845,9.09e-05,2]
[355799198,1741577439766,-1530.0,9.09e-05,2]
[355799200,1741577439778,-15840.78667703,9.09e-05,2]
[355799202,1741577439787,-1000.0,9.091e-05,2]
[355799204,1741577439796,-250.0,9.101e-05,2]
[355799206,1741577439805,-388.6,9.103e-05,2]
[355799208,1741577439814,-153.34,9.343e-05,2]
[355799210,1741577439823,-153.34,9.615e-05,2]
[355799212,1741577439833,-661.18,9.899e-05,2]
[355799214,1741577439842,-150.0,9.899e-05,2]
[355799216,1741577439851,-4113.6088,9.9e-05,2]
[355799219,1741577439870,-1350.328,9.9e-05,2]
[355799221,1741577439883,-2634.9414,9.9e-05,2]
[355799223,1741577439893,-1312.0354,9.9e-05,2]
[355799225,1741577439903,-171.8339,9.9e-05,2]
[355799227,1741577439913,-7386.03,9.9e-05,2]
[355799229,1741577439923,-1292.6572,9.9e-05,2]
[355799231,1741577439933,-1073.32714387,9.9e-05,2]
[355799233,1741577439942,-24303.88964241,9.907e-05,2]
[355799235,1741577439952,-24303.88964241,9.969e-05,2]
[355799237,1741577439962,-200.0,9.99e-05,2]
[355799239,1741577439972,-203.94,9.99e-05,2]
[355799241,1741577439981,-957.646,9.997e-05,2]
[355799243,1741577439990,-4570.53907077,9.998e-05,2]
[355799245,1741577439999,-379.3182019,9.998e-05,2]
[355799247,1741577440009,-968.668045,9.998e-05,2]
[355799249,1741577440018,-566.93596981,9.998e-05,2]
[355799251,1741577440027,-2631.8037285,9.998e-05,2]
[355799253,1741577440037,-6281.1931019,9.998e-05,2]
[355799255,1741577440047,-420.0,9.998e-05,2]
[355799257,1741577440057,-1000.0,9.999e-05,2]
[355799259,1741577440066,-1438.05,9.999e-05,2]
[355799261,1741577440076,-150.0,9.999e-05,2]
[355799263,1741577440085,-276.09829254,9.999e-05,2]
[355799265,1741577440094,-106425.24576636,0.0001,2]
[355799267,1741577440104,-736.0,0.0001,2]
[355799269,1741577440113,-6956.7540413,0.0001,2]
[355799271,1741577440122,-199883.54445744,0.0001,2]
[355799274,1741577440142,-2737.48642353,0.0001,2]
[355799276,1741577440154,-1127.84130903,0.0001,2]
[355799310,1741577440450,-301.49999912,0.0001,2]
[355799313,1741577440462,-574.6275,0.0001,2]
[355799316,1741577440485,-8833.34621378,0.0001,2]
[355799318,1741577440496,-307592.74441043,0.0001,2]
[355799320,1741577440507,-3284.44,0.0001,2]
[355799562,1741577442849,-7216.64268312,0.0001,2]
[355799575,1741577442957,-54809.87051676,0.0001,2]
[355799647,1741577443738,-401.0,0.0001,2]
[355799650,1741577443759,-2359.79192815,0.0001,2]
[355799849,1741577445791,-813.75609051,0.0001,2]
[355799915,1741577705879,450.0,0.00028,120]
[355799916,1741578278618,2500.0,0.00028,120]
[355799920,1741578419784,-262.89,9e-05,2]
[355799921,1741578444812,-287.11,9e-05,2]
[355799922,1741578457339,1148.98,8.219e-05,2]
[355799932,1741578632322,-150.26,9.297e-05,2]
[355799933,1741578632333,-460.84,9.301e-05,2]
[355799934,1741578632343,-186.22,9.319e-05,2]
[355799935,1741578632353,-164.546722,9.6e-05,2]
[355799936,1741578632362,-1012.0,9.6e-05,2]
[355799937,1741578632371,-4872.6364611,9.998e-05,2]
[355799938,1741578632381,-349.1059278,9.998e-05,2]
[355799939,1741578632390,-843.4051431,9.998e-05,2]
[355799940,1741578632399,-181.3831337,9.998e-05,2]
[355799941,1741578632409,-1000.0,9.999e-05,2]
[355799942,1741578632418,-1378.13,9.999e-05,2]
[355799943,1741578632428,-150.0,9.999e-05,2]
[355799944,1741578632438,-320.44421655,9.999e-05,2]
[355799945,1741578632448,-4341.95994,0.0001,2]
[355799946,1741578632458,-562.0,0.0001,2]
[355799947,1741578632468,-37029.65523307,0.0001,2]
[355799948,1741578632480,-12102.56158091,0.0001,2]
[355799949,1741578632500,-3726.0,0.0001,2]
[355799957,1741578637965,-1054.27225137,0.0001,2]
[355799958,1741578637978,-721.42458075,0.0001,2]
[355799959,1741578637994,-1702.68018854,0.0001,2]
[355799960,1741578638004,-345.50941146,0.0001,2]
[355799961,1741578638016,-974.16207443,0.0001,2]
[355799962,1741578638061,-574.64045459,0.0001,2]
[355799963,1741578638073,-801.78541545,0.0001,2]
[355799964,1741578638114,-300.32,0.0001,2]
[355799969,1741578639999,-502.0,0.0001,2]
[355799970,1741578640009,-2489.1802949,0.0001,2]
[355799971,1741578640021,-424317.89549591,0.0001,2]
[355799972,1741578640107,-4993.9543955,0.0001,2]
[355799973,1741578640267,-303403.95652089,0.0001,2]
[355799974,1741578640278,-40176.79191419,0.0001,2]
[355799975,1741578640333,-2186.99999996,0.0001,2]
[355799985,1741578645947,-1528.95011442,0.0001,2]
[355799986,1741578645959,-783.45079787,0.0001,2]
[355799987,1741578646108,-2390.19076786,0.0001,2]
[355799988,1741578646267,-533.59496,0.0001,2]
[355799989,1741578646279,-4064.83,0.0001,2]
[355800008,1741579412723,460.59223205,0.00027674,120]
[355800011,1741579799273,427.8544561,8.219e-05,2]
[355800012,1741579799295,724.7455439,8.219e-05,2]
[355800013,1741579832192,-183.01,9.337e-05,2]
[355800014,1741579832202,-262.89,9.342e-05,2]
[355800015,1741579832211,-1000.0,9.36e-05,2]
[355800016,1741579832221,-310.88,9.407e-05,2]
[355800017,1741579832230,-150.0,9.822e-05,2]
[355800018,1741579832239,-3932.0,9.822e-05,2]
[355800019,1741579832248,-1212.29,9.973e-05,2]
[355800020,1741579832258,-5098.69222216,9.99e-05,2]
[355800021,1741579832268,-300.0,9.997e-05,2]
[355800022,1741579832277,-1617.0381345,9.998e-05,2]
[355800023,1741579832287,-151.1526114,9.998e-05,2]
[355800024,1741579832296,-674.5104436,9.998e-05,2]
[355800025,1741579832305,-3832.220371,9.998e-05,2]
[355800026,1741579832315,-1320.7,9.999e-05,2]
[355800027,1741579832324,-150.0,9.999e-05,2]
[355800028,1741579832333,-224.31095158,9.999e-05,2]
[355800029,1741579832343,-2046.52898973,0.0001,2]
[355800030,1741579832354,-5999.93323366,0.0001,2]
[355800031,1741579832377,-2033.399527,0.0001,2]
[355800032,1741579832389,-955.26651906,0.0001,2]
[355800033,1741579832425,-5188.85335184,0.0001,2]
[355800034,1741579832437,-15617.28,0.0001,2]
[355800035,1741579832448,-1050.11323801,0.0001,2]
[355800036,1741579832459,-6289.07,0.0001,2]
[355800037,1741579832470,-3071.705,0.0001,2]
[355800038,1741579832482,-327.105009,0.0001,2]
[355800039,1741579832493,-957.2276478,0.0001,2]
[355800040,1741579832504,-575.10458265,0.0001,2]
[355800041,1741579832515,-4899.0386758,0.0001,2]
[355800042,1741579832532,-322.26793109,0.0001,2]
[355800043,1741579832543,-417.36850801,0.0001,2]
[355800044,1741579832564,-1434.24613958,0.0001,2]
[355800045,1741579832575,-4631.89421095,0.0001,2]
[355800046,1741579832586,-296.06898983,0.0001,2]
[355800047,1741579832598,-531.053597,0.0001,2]
[355800048,1741579832619,-858.07119944,0.0001,2]
[355800049,1741579832630,-18585.25772274,0.0001,2]
[355800050,1741579832645,-718.78087629,0.0001,2]
[355800104,1741579838172,-1283.6497138,9.998e-05,2]
[355800105,1741579838183,-1770.37787328,0.0001,2]
[355800106,1741579838192,-5465.09220292,0.0001,2]
[355800107,1741579838269,-2814.15464849,0.0001,2]
[355800108,1741579838280,-3779.0,0.0001,2]
[355800109,1741579838291,-503.01173433,0.0001,2]
[355800110,1741579838323,-5463.36885183,0.0001,2]
[355800112,1741579840155,-500.69802099,0.0001,2]
[355800113,1741579840209,-2342.47585922,0.0001,2]
[355800114,1741579840421,-3609.33996731,0.0001,2]
[355800115,1741579840432,-274.42110487,0.0001,2]
[355800201,1741579843144,-42847.70696763,0.0001,2]
[355800208,1741579846126,-515.82099314,0.0001,2]
[355800209,1741579846230,-267.57959995,0.0001,2]
[355800210,1741579846403,-5389.87706037,0.0001,2]
[355800214,1741579883916,-350.0,9e-05,3]
[355800215,1741580017258,-50.0,9e-05,3]
[355800216,1741580017279,-800.0,9.1e-05,3]
[355800217,1741580017300,-13.0,9.2e-05,3]
[355800218,1741580017340,-1000.0,9.083e-05,2]
[355800219,1741580017382,-1287.0,9.2e-05,3]
[355800220,1741580017457,-400.0,9.3e-05,3]
[355800221,1741580017497,-400.0,9.3e-05,3]
[355800222,1741580017537,-400.0,9.3e-05,3]
[355800223,1741580017577,-337.0,9.3e-05,3]
[355800224,1741580017644,-163.0,9.3e-05,3]
[355800225,1741580017665,-237.0,9.4e-05,3]
[355800226,1741580017692,-1863.0,9.4e-05,3]
[355800227,1741580017811,-300.0,9.5e-05,3]
[355800228,1741580260156,-150.0,9e-05,2]
[355800229,1741580279143,-100.0,9.5e-05,3]
[355800230,1741580279165,-300.0,9.6e-05,3]
[355800231,1741580391308,-150.0,9e-05,2]
[355800232,1741580411444,-236.0,9e-05,2]
[355800254,1741580991851,-1040.67721254,8.219e-05,2]
[355800266,1741581032383,-115.28278746,8.219e-05,2]
[355800267,1741581032393,-14.0,9e-05,2]
[355800268,1741581032403,-236.32,9.101e-05,2]
[355800269,1741581032412,-299.2,9.118e-05,2]
[355800270,1741581032422,-5273.46,9.145e-05,2]
[355800271,1741581032431,-1000.0,9.156e-05,2]
[355800272,1741581032440,-1129.05,9.171e-05,2]
[355800273,1741581032452,-913.93,9.208e-05,2]
[355800274,1741581032461,-2034.49770409,9.8e-05,3]
[355800275,1741581032471,-533.54243104,9.973e-05,2]
[355800276,1741581032481,-1067.795,9.987e-05,2]
[355800277,1741581032490,-150.0,9.987e-05,2]
[355800278,1741581032499,-42147.06866502,9.988e-05,2]
[355800279,1741581032508,-378.74815483,9.989e-05,2]
[355800280,1741581032517,-500.0,9.989e-05,2]
[355800281,1741581032527,-640.35296861,9.989e-05,2]
[355800282,1741581032536,-500.0,9.989e-05,2]
[355800283,1741581032545,-500.0,9.989e-05,2]
[355800284,1741581032555,-500.0,9.989e-05,2]
[355800285,1741581032564,-500.0,9.989e-05,2]
[355800286,1741581032573,-500.0,9.989e-05,2]
[355800287,1741581032583,-500.0,9.989e-05,2]
[355800288,1741581032592,-500.0,9.989e-05,2]
[355800289,1741581032601,-560.15127226,9.989e-05,2]
[355800290,1741581032611,-309965.11713435,9.99e-05,2]
[355800291,1741581032626,-835.85692776,9.99e-05,2]
[355800292,1741581032637,-988.468,9.99e-05,2]
[355800304,1741581032879,-1081.66276988,9.99e-05,2]
[355800307,1741581032890,-1300.0,9.99e-05,2]
[355800312,1741581032905,-3443.49879333,9.99e-05,2]
[355800338,1741581038246,-344.12974036,9.99e-05,2]
[355800339,1741581038258,-541.05919628,9.99e-05,2]
[355800340,1741581038268,-20239.48470717,9.99e-05,2]
[355800341,1741581038309,-1329.14655895,9.99e-05,2]
[355800342,1741581038320,-773.97421782,9.99e-05,2]
[355800343,1741581038332,-8155.7,9.99e-05,2]
[355800344,1741581038343,-4834.01734628,9.99e-05,2]
[355800345,1741581038421,-401.616215,9.99e-05,2]
[355800346,1741581038433,-358.1318956,9.99e-05,2]
[355800347,1741581038479,-12893.8938511,9.99e-05,2]
[355800348,1741581038491,-804.32,9.99e-05,2]
[355800402,1741581040300,-655.7683288,9.99e-05,2]
[355800403,1741581040564,-1518.76756244,9.99e-05,2]
[355800406,1741581040918,-310.5,9.99e-05,2]
[355800407,1741581040929,-3419.99457149,9.99e-05,2]
[355800408,1741581040952,-12210.74810465,9.99e-05,2]
[355800409,1741581040964,-1759.8369796,9.99e-05,2]
[355800416,1741581043389,-500.0,9.99e-05,2]
[355800417,1741581043401,-5485.4738,9.99e-05,2]
[355800418,1741581043412,-15196.0458,9.99e-05,2]
[355800421,1741581044347,-793.62008107,9.99e-05,2]
[355800422,1741581044862,3479.0,9e-05,120]
[355800423,1741581046288,-4040.11477997,9.99e-05,2]
[355800424,1741581046301,-520.45800274,9.99e-05,2]
[355800425,1741581046313,-2292.72086,9.99e-05,2]
[355800426,1741581046333,-359.76402079,9.99e-05,2]
[355800427,1741581046493,-664.09489625,9.99e-05,2]
[355800433,1741581284291,500.0,8.912e-05,2]
[355800434,1741581393194,1089.92,0.00028,120]
[355800435,1741581457982,181.5875556,0.00027677,30]
[355800436,1741581782136,500.0,8.94e-05,2]
[355800456,1741582102885,550.0,9e-05,2]
[355800457,1741582176914,1165.11,8.219e-05,2]
[355800463,1741582231559,-155.19,9.158e-05,2]
[355800464,1741582231569,-223.13,9.206e-05,2]
[355800465,1741582231579,-177.78,9.228e-05,2]
[355800466,1741582231589,-443.9,9.9e-05,2]
[355800467,1741582231673,-223254.69414286,9.9e-05,2]
[355800468,1741582231682,-300.0,9.972e-05,2]
[355800469,1741582231691,-1434.0,9.973e-05,2]
[355800470,1741582231701,-14829.0,9.973e-05,2]
[355800471,1741582231710,-371.23968063,9.973e-05,2]
[355800472,1741582231720,-991.671,9.973e-05,2]
[355800473,1741582231729,-4538.27939554,9.973e-05,2]
[355800474,1741582231738,-150.0,9.989e-05,2]
[355800475,1741582231748,-260.49703411,9.989e-05,2]
[355800476,1741582231759,-289032.59589698,9.99e-05,2]
[355800477,1741582231768,-1148.5,9.99e-05,2]
[355800478,1741582231778,-190.68072783,9.998e-05,2]
[355800479,1741582231787,-249.5321831,9.998e-05,2]
[355800480,1741582231797,-549.9846249,9.998e-05,2]
[355800481,1741582231806,-1417.7131348,9.998e-05,2]
[355800482,1741582231816,-173.45446076,9.999e-05,3]
[355800483,1741582231826,-1356.77,9.999e-05,2]
[355800484,1741582231836,-571.0,9.999e-05,2]
[355800485,1741582231845,-3045.861,9.999e-05,2]
[355800486,1741582231855,-150.0,9.999e-05,2]
[355800487,1741582231864,-265.12370838,9.999e-05,2]
[355800488,1741582231874,-500.0,9.999e-05,2]
[355800489,1741582231883,-500.0,9.999e-05,2]
[355800490,1741582231892,-500.0,9.999e-05,2]
[355800491,1741582231902,-500.0,9.999e-05,2]
[355800492,1741582231911,-500.0,9.999e-05,2]
[355800493,1741582231920,-407.04365644,9.999e-05,2]
[355800494,1741582231930,-500.0,9.999e-05,2]
[355800495,1741582231939,-450.0,9.999e-05,2]
[355800496,1741582231948,-442.59446832,0.0001,2]
[355800497,1741582231958,-1205125.75311566,0.0001,2]
[355800512,1741582239629,-518.82500001,0.0001,2]
[355800530,1741582242626,-707444.85453085,0.0001,2]
[355800545,1741582245839,-8525.47269226,0.0001,2]
[355800546,1741582245871,-5959.88499869,0.0001,2]
[355800547,1741583222741,469.20661536,8.219e-05,2]
[355800548,1741583222770,696.83338464,8.219e-05,2]
[355800549,1741583340021,-250.0,8.882e-05,2]
[355800553,1741583370395,-250.0,8.881e-05,2]
[355800554,1741583431685,-156.23,8.881e-05,2]
[355800555,1741583431698,-152.72,9.102e-05,2]
[355800556,1741583431711,-239.36,9.154e-05,2]
[355800557,1741583431724,-152.72,9.171e-05,2]
[355800558,1741583431737,-500.0,9.216e-05,2]
[355800559,1741583431750,-152.72,9.239e-05,2]
[355800560,1741583431763,-1000.0,9.243e-05,2]
[355800561,1741583431779,-325.27667778,9.303e-05,2]
[355800562,1741583431791,-4332.54649202,9.303e-05,2]
[355800563,1741583431829,-343.00350798,9.303e-05,2]
[355800564,1741583431843,-152.72,9.307e-05,2]
[355800565,1741583431857,-300.0,9.328e-05,2]
[355800566,1741583431870,-23855.75,9.329e-05,2]
[355800567,1741583431882,-152.72,9.375e-05,2]
[355800568,1741583431895,-310.87,9.378e-05,2]
[355800569,1741583431909,-152.72,9.444e-05,2]
[355800570,1741583431922,-152.72,9.512e-05,2]
[355800571,1741583431936,-152.72,9.58e-05,2]
[355800572,1741583431949,-152.72,9.649e-05,2]
[355800573,1741583431961,-150.0,9.888e-05,2]
[355800574,1741583431974,-501.57357659,9.973e-05,2]
[355800575,1741583431987,-161.17799395,9.973e-05,2]
[355800576,1741583432000,-938.083,9.973e-05,2]
[355800577,1741583432013,-172.46252774,9.973e-05,2]
[355800578,1741583432026,-200.0,9.99e-05,2]
[355800579,1741583432039,-200.0,9.99e-05,2]
[355800580,1741583432052,-1000.0,9.998e-05,2]
[355800581,1741583432065,-522.2563107,9.998e-05,2]
[355800582,1741583432077,-1151.0857539,9.998e-05,2]
[355800583,1741583432089,-150.0,9.998e-05,2]
[355800584,1741583432102,-2958.0941942,9.998e-05,2]
[355800585,1741583432115,-199.80279057,9.999e-05,3]
[355800586,1741583432127,-1358.61740743,9.999e-05,3]
[355800587,1741583432140,-1300.24,9.999e-05,2]
[355800588,1741583432152,-642.7670198,9.999e-05,2]
[355800589,1741583432165,-196.71148742,9.999e-05,2]
[355800590,1741583432178,-417.64472836,9.999e-05,2]
[355800593,1741583432190,-500.0,9.999e-05,2]
[355800595,1741583432203,-193.9418778,9.999e-05,2]
[355800597,1741583432217,-781343.41215416,0.0001,2]
[355800617,1741583437618,-221.29723416,0.0001,2]
[355800618,1741583437627,-419.87352115,0.0001,2]
[355800619,1741583437692,-366.14315867,0.0001,2]
[355800620,1741583437715,-442.20931429,0.0001,2]
[355800621,1741583437822,-24872.9,0.0001,2]
[355800622,1741583437879,-8326.59631827,0.0001,2]
[355800623,1741583437891,-1838.5916805,0.0001,2]
[355800624,1741583437902,-13313.67744307,0.0001,2]
[355800629,1741583439541,1000.0,0.00027,120]
[355800630,1741583439680,-766.4,0.0001,2]
[355800631,1741583440277,-21000.0,0.0001,2]
[355800632,1741583440288,-21075.09420454,0.0001,2]
[355800644,1741583442613,-761.00418784,0.0001,2]
[355800656,1741583442784,-81019.91359631,0.0001,2]
[355800674,1741583444494,-18497.91312658,0.0001,2]
[355800675,1741583444508,-9103.5,0.0001,2]
[355800676,1741583445775,-500.0,0.0001,2]
[355800677,1741583445787,-1543.49445055,0.0001,2]
[355800678,1741583445933,-827.8,0.0001,2]
[355800679,1741583446048,-8319.07218462,0.0001,2]
[355800680,1741583446059,-818.19641601,0.0001,2]
[355800689,1741584359602,-169.29,8.219e-05,2]
[355800691,1741584491541,100011.7418974,8e-05,2]
[355800693,1741584536919,-357.74,8.219e-05,2]
[355800699,1741584571100,200.34435999,8.178e-05,2]
[355800702,1741584598826,-142.26,8.219e-05,2]
[355800703,1741584598855,-402.52195204,8.219e-05,2]
[355800708,1741584632136,-535.91804796,8.219e-05,2]
[355800709,1741584632151,-214.91,8.832e-05,2]
[355800710,1741584632160,-550.0,9e-05,2]
[355800711,1741584632170,-151.46,9.36e-05,2]
[355800712,1741584632180,-151.46,9.391e-05,2]
[355800713,1741584632192,-1000.0,9.421e-05,2]
[355800714,1741584632203,-151.46,9.422e-05,2]
[355800715,1741584632212,-151.46,9.453e-05,2]
[355800716,1741584632222,-151.46,9.485e-05,2]
[355800717,1741584632233,-151.46,9.516e-05,2]
[355800718,1741584632242,-151.46,9.547e-05,2]
[355800719,1741584632252,-151.46,9.578e-05,2]
[355800720,1741584632261,-151.46,9.609e-05,2]
[355800721,1741584632271,-151.46,9.641e-05,2]
[355800722,1741584632280,-151.46,9.672e-05,2]
[355800723,1741584632293,-151.46,9.703e-05,2]
[355800724,1741584632304,-151.46,9.734e-05,2]
[355800725,1741584632315,-151.46,9.765e-05,2]
[355800726,1741584632324,-151.46,9.797e-05,2]
[355800727,1741584632334,-151.46,9.828e-05,2]
[355800728,1741584632344,-151.46,9.859e-05,2]
[355800729,1741584632353,-151.46,9.89e-05,2]
[355800730,1741584632363,-500.0,9.9e-05,2]
[355800731,1741584632373,-276.5665,9.9e-05,2]
[355800732,1741584632383,-5621.7265,9.9e-05,2]
[355800733,1741584632393,-151.46,9.921e-05,2]
[355800734,1741584632403,-150.0,9.969e-05,2]
[355800735,1741584632413,-250.1693024,9.998e-05,2]
[355800736,1741584632423,-867.5694829,9.998e-05,2]
[355800737,1741584632433,-160.0736556,9.998e-05,2]
[355800738,1741584632443,-2281.0269825,9.998e-05,2]
[355800740,1741584632452,-1246.07,9.999e-05,2]
[355800742,1741584632462,-500.0,9.999e-05,2]
[355800744,1741584632472,-500.0,9.999e-05,2]
[355800746,1741584632482,-500.0,9.999e-05,2]
[355800748,1741584632491,-500.0,9.999e-05,2]
[355800750,1741584632500,-500.0,9.999e-05,2]
[355800752,1741584632511,-500.0,9.999e-05,2]
[355800754,1741584632520,-500.0,9.999e-05,2]
[355800756,1741584632530,-185.62678782,9.999e-05,2]
[355800758,1741584632540,-357.90469019,9.999e-05,2]
[355800760,1741584632550,-653.10474423,0.0001,2]
[355800762,1741584632559,-957385.49735534,0.0001,2]
[355800767,1741584632593,-433.70568007,0.0001,2]
[355800770,1741584632613,-771.75618657,0.0001,2]
[355800775,1741584638063,-24872.98685446,0.0001,2]
[355800776,1741584640128,-1188.0384,0.0001,2]
[355800777,1741584640270,-434.21813517,0.0001,2]
[355800778,1741584640337,-404.760008,0.0001,2]
[355800785,1741584643160,-20745.70407019,0.0001,2]
[355800835,1741584646052,-541.42578646,9.8e-05,2]
[355800842,1741584646112,-470.103726,9.8e-05,2]
[355800844,1741584646129,-147417.79453391,0.0001,2]
[355800860,1741584730259,1010.8,0.00027681,30]
[355800866,1741585354884,770.92633936,0.00028,120]
[355800867,1741585439554,-250.0,8.219e-05,2]
[355800873,1741585693343,-801.35364761,8.219e-05,2]
[355800877,1741585832553,-0.98635239,8.219e-05,2]
[355800878,1741585832563,-550.0,9e-05,2]
[355800879,1741585832575,-69.01364761,9.054e-05,2]
[355800885,1741585838210,-16835.21955073,9.054e-05,2]
[355801053,1741585840322,-869.58602507,9.054e-05,2]
[355801361,1741585843431,-596.33245142,9.054e-05,2]
[355801363,1741585843444,-497.06061393,9.054e-05,2]
[355801378,1741585846429,-5032.78771124,9.054e-05,2]
[355801379,1741585846439,-224.3,9.097e-05,2]
[355801380,1741585846453,-263.51,9.185e-05,2]
[355801381,1741585846463,-278.52,9.27e-05,2]
[355801382,1741585846472,-151.89315198,9.272e-05,2]
[355801383,1741585846484,-848.10684802,9.272e-05,2]
[355801384,1741585846494,-172.04,9.46e-05,2]
[355801385,1741585846503,-150.0,9.562e-05,7]
[355801386,1741585846512,-150.0,9.644e-05,2]
[355801387,1741585846522,-490.0,9.671e-05,2]
[355801388,1741585846532,-1142.3493978,9.8e-05,2]
[355801389,1741585846545,-156.1552,9.9e-05,2]
[355801390,1741585846554,-476.9954886,9.998e-05,2]
[355801391,1741585846563,-1194.2538655,9.998e-05,2]
[355801392,1741585846573,-808.57622336,9.998e-05,2]
[355801393,1741585846582,-208.4744187,9.998e-05,2]
[355801394,1741585846592,-1085.06235263,9.999e-05,3]
[355801395,1741585846827,-1085.06235264,9.999e-05,3]
[355801396,1741585846837,-1194.15,9.999e-05,2]
[355801397,1741585846847,-68.37385275,9.999e-05,2]
[355801398,1741585846871,-81.62614725,9.999e-05,2]
[355801399,1741585846880,-188.453,0.0001,2]
[355801400,1741585846890,-513.31750325,0.0001,2]
[355801401,1741585846909,-145.78606897,0.0001,2]
[355801402,1741585846918,-309833.40107178,0.0001,2]
[355801403,1741585856424,-300.0,0.0001,12]
[355801404,1741585858956,-300.0,0.0001,12]
[355801405,1741585862249,-300.0,0.0001,12]
[355801406,1741585866719,159.0,0.00028,120]
[355801407,1741585869603,237.0,9e-05,3]
[355801408,1741585869630,63.0,9e-05,3]
[355801409,1741585871941,700.0,9.1e-05,3]
[355801410,1741585874663,937.0,9.2e-05,3]
[355801411,1741585874763,13.0,9.2e-05,3]
[355801412,1741586100340,283.32,7.234e-05,2]
[355801413,1741586104602,156.0,0.00028,120]
[355801414,1741586334832,-198.69244979,8.885e-05,2]
[355801415,1741586370036,5000.0,0.00028,120]
[355801416,1741586485386,-150.0,8.4e-05,2]
[355801417,1741586527575,-1430.68,8.4e-05,2]
[355801418,1741586572843,-124.32,8.4e-05,2]
[355801419,1741586572867,-518.9,8.737e-05,2]
[355801420,1741586620877,195.98439232,0.00027681,120]
[355801421,1741586727023,-262.89,8.219e-05,2]
[355801426,1741586828887,-736.83,8.219e-05,2]
[355801427,1741586828911,-86.29,8.478e-05,2]
[355801428,1741586864512,200.0,9e-05,3]
[355801429,1741586877290,-150.0,8.313e-05,2]
[355801430,1741586965727,600.0,8e-05,6]
[355801431,1741586965760,497.0,8e-05,6]
[355801432,1741587025388,-50.0,8.313e-05,2]
[355801433,1741587025412,-304.81,8.328e-05,2]
[355801434,1741587027906,1724.0,0.00028,120]
[355801442,1741587031714,-463.71,8.478e-05,2]
[355801443,1741587031724,-99.21208829,8.737e-05,2]
[355801444,1741587031736,-578.86914843,8.737e-05,2]
[355801445,1741587031747,-308.34897328,8.737e-05,2]
[355801446,1741587031757,-518.9,8.782e-05,2]
[355801447,1741587031767,-285.67587197,8.782e-05,2]
[355801448,1741587031776,-285.67587195,8.809e-05,2]